Cogmind - Beta 14 @@@ ROGUE MODE // 2024.11.24 @ 03:16:07 Player: WazdakkaGutsmek Result: Destroyed by Triborg with Siege Cannon Performance ------------- Evolutions (2) 1000 Regions Visited (7) 1400 Robots Destroyed (124) 620 Value Destroyed (3608) 3608 Prototype IDs (14) 280 Alien Tech Used (0) 0 Bonus (810) 810 TOTAL SCORE: 7718 Bonus ------- High Alert Combat Kills 636 Registered with UFD 300 Friendly Fire -126 Cogmind --------- Core Integrity 0/550 Matter 300/300 Energy 98/100 System Corruption 0% Temperature Cool (0) Movement Treading (145) Location -8/Scraptown Parts ------- > --- POWER (1) -------- (None) > --- PROPULSION (4) --- Advanced Treads > --- UTILITY (4) ------ Large Storage Unit A0-MCA's Component Scanner > --- WEAPON (2) ------- (None) > --- INVENTORY (15) --- Armored Treads Armored Treads Armored Treads Scrap Suit High-capacity Matter Pod (200) Lightning Gun Lightning Gun Lightning Gun Gauss Cannon Gauss Cannon Heavy Rocket Launcher CPS Tube (2) DRS Beacon (Ready) Peak State ------------ > --- POWER ------------ Heavy Ion Engine > --- PROPULSION ------- Armored Treads Armored Treads Advanced Treads > --- UTILITY ---------- Scrap Suit Large Storage Unit A0-MCA's Component Scanner > --- WEAPON ----------- Gauss Cannon Gauss Cannon > --- INVENTORY -------- Armored Treads Armored Treads Armored Treads High-capacity Matter Pod Lightning Gun Lightning Gun Lightning Gun Lightning Gun Gauss Cannon Gauss Cannon Heavy Rocket Launcher Heavy Rocket Launcher Heavy Rocket Launcher CPS Tube DRS Beacon [Rating: 43] Favorites ----------- Power Heavy Ion Engine Engine Heavy Ion Engine Propulsion Armored Treads Treads Armored Treads Leg Aluminum Leg Utility Large Storage Unit Device Weapon Cycler Storage Large Storage Unit Processor A0-MCA's Component Scanner Protection Light Armor Plating Weapon Gauss Cannon Energy Gun Lightning Gun Ballistic Gun Improved Assault Rifle Ballistic Cannon Gauss Cannon Launcher Heavy Rocket Launcher Build | -11 -10 -10 -9 -8 -8 -8 -8 ------- Run | Yrd Mat Min Mat Mat Sto Rec Scr Slots Evolved 4 | . . . 2 2 . . . Power . | . . . . . . . . Propulsion 2 | . . . 1 1 . . . Utility 2 | . . . 1 1 . . . Weapon . | . . . . . . . . Parts Attached 65 | . 2 5 15 32 6 1 4 Power 4 | . . 1 2 1 . . . Engine 4 | . . 1 2 1 . . . Core . | . . . . . . . . Reactor . | . . . . . . . . Propulsion 20 | . . 2 5 12 1 . . Treads 20 | . . 2 5 12 1 . . Leg . | . . . . . . . . Wheel . | . . . . . . . . Hover . | . . . . . . . . Flight . | . . . . . . . . Utility 16 | . 1 1 3 6 1 1 3 Device 5 | . . . . 3 . 1 1 Storage 2 | . 1 . 1 . . . . Processor 1 | . . . . . . . 1 Hackware . | . . . . . . . . Protection 8 | . . 1 2 3 1 . 1 Artifact . | . . . . . . . . Weapon 25 | . 1 1 5 13 4 . 1 Energy Gun 16 | . 1 1 4 9 1 . . Energy Cannon . | . . . . . . . . Ballistic Gun 1 | . . . 1 . . . . Ballistic Cannon 2 | . . . . . 2 . . Launcher 6 | . . . . 4 1 . 1 Special Weapon . | . . . . . . . . Impact Weapon . | . . . . . . . . Slashing Weapon . | . . . . . . . . Piercing Weapon . | . . . . . . . . Special Melee Weapon . | . . . . . . . . Unidentified Prototypes 4 | . . . 3 1 . . . Corrupted Parts 1 | . . . . 1 . . . System Corruption 3 | . . . . 3 . . . Parts Lost 18 | . . 3 2 5 . 2 6 Power 2 | . . 1 . . . . 1 Propulsion 3 | . . . . . . 1 2 Utility 6 | . . . 1 3 . 1 1 Weapon 7 | . . 2 1 2 . . 2 Highest Loss Streak 5 | . . 2 1 1 . 1 5 To Critical Strikes 2 | . . . . . . 1 1 Average Slot Usage (%) 87 | . 85 85 85 90 89 84 86 Engine 9 | . 14 13 11 9 9 9 8 Treads 29 | . . 12 27 34 36 32 26 Leg 1 | . 28 14 . . . . . Device 9 | . . . . 12 9 11 15 Storage 9 | . 14 14 11 9 9 9 9 Protection 8 | . . 6 17 7 8 4 6 Energy Gun 10 | . 28 23 18 17 10 . . Ballistic Cannon 7 | . . . . . 7 18 17 Peak Build Rating 43 | . 7 8 19 41 34 34 43 Average Rating 29 | . 6 6 16 31 33 33 37 On Entrance 17 | 6 6 6 6 19 33 34 33 Naked Turns . | . . . . . . . . Heaviest Build 54 | 12 22 22 43 45 46 46 54 Greatest Support 112 | 20 20 40 63 112 82 82 62 Greatest Overweight (x) 1 | . 1 . 1 . . . 1 Average Overweight (x) . | . . . . . . . . Largest Inventory Capacity 15 | . 10 10 15 15 15 15 15 Average Capacity 14 | . 8 10 14 15 15 15 15 Most Carried 15 | . 8 9 9 15 14 14 15 Average Carried 11 | . 6 4 5 11 13 14 14 Final Capacity 15 | 8 10 10 15 15 15 15 15 Final Carried 14 | 6 7 1 9 13 14 14 14 Class Distribution -------------------- 89% | Mutant 10% | Scavenger-Mutant Dominant Class ---------------- Mutant | -10/Materials Mutant | -10/Mines Mutant | -9/Materials Mutant | -8/Materials Mutant | -8/Storage Mutant | -8/Recycling Mutant | -8/Scraptown Resources | -11 -10 -10 -9 -8 -8 -8 -8 ----------- Run | Yrd Mat Min Mat Mat Sto Rec Scr Matter Collected 1926 | 200 . 60 155 436 235 370 470 Remotely . | . . . . . . . . Salvage Created 4970 | . 30 102 929 2413 304 880 312 Parts 252 | . 3 5 64 114 29 25 12 Haulers Intercepted 5 | . . . 2 3 . . . Recyclers Shooed 5 | . . . . 3 1 1 . Parts Field Recycled . | . . . . . . . . Retrieved Matter . | . . . . . . . . Parts Self-Destructed . | . . . . . . . . Prevented . | . . . . . . . . Kills | -11 -10 -10 -9 -8 -8 -8 -8 ------- Run | Yrd Mat Min Mat Mat Sto Rec Scr Combat Hostiles Destroyed 90 | . . 3 20 43 8 10 6 Melee 1 | . . 1 . . . . . Guns 43 | . . 1 18 23 1 . . Cannons 17 | . . . . . 2 10 5 AOE 22 | . . . 1 16 4 . 1 Classes Destroyed 23 | . 1 2 6 9 . 1 4 Worker 6 | . . . 2 3 1 . . Builder 5 | . . . . 3 2 . . Tunneler 1 | . . . . 1 . . . Hauler 5 | . . . 2 3 . . . Recycler 10 | . . . 1 3 . 6 . Mechanic 1 | . . . . 1 . . . Operator 2 | . . . . 1 1 . . Watcher 8 | . 1 . 2 4 1 . . Swarmer 18 | . . . 9 4 4 1 . Grunt 40 | . . 2 8 26 3 1 . Brawler 4 | . . . 1 1 . 2 . Duelist 2 | . . . . 2 . . . Protector 2 | . . . . 1 . 1 . Sentry 10 | . . . 2 4 1 3 . Demolisher 1 | . . 1 . . . . . Specialist 2 | . . . . 2 . . . Hunter 3 | . . . . 2 . 1 . Programmer 2 | . . . . . . 2 . Heavy 1 | . . . . 1 . . . Explorer 2 | . . . . . . . 2 Ranger 1 | . . . . . . . 1 Scrapper 2 | . . . . . . . 2 Elite 1 | . . . . . . . 1 Best Kill Streak 12 | . 1 2 7 12 6 11 2 Combat Bots Only 9 | . . 2 7 9 4 7 2 Max Kills in Single Turn 5 | . 1 1 2 5 4 2 1 Gunslinging 1 | . . . 1 . . . . Exploded 4 | . . . 1 4 4 . 1 Melee 1 | . . 1 . . . . . Uniques/NPCs Destroyed . | . . . . . . . . Combat | -11 -10 -10 -9 -8 -8 -8 -8 -------- Run | Yrd Mat Min Mat Mat Sto Rec Scr Hostile Shots Fired 376 | . . 27 62 139 37 56 55 Missed 126 | . . 6 27 46 14 18 15 Damage Taken 4706 | . . 433 471 1857 366 524 1055 Core 786 | . . 46 114 278 42 118 188 Absorbed by Shields 4 | . . . . . . 4 . Regen/Repaired (Parts) 109 | . . . . 109 . . . Core Remaining (%) 84 | 100 . 81 71 . . . . Volleys Fired 229 | . 1 19 32 115 22 22 18 Largest 2 | . 2 2 2 2 2 2 2 Hottest 110 | . 80 90 100 110 110 96 96 Shots Fired 413 | . 2 30 60 203 44 47 27 Gun 308 | . 2 30 60 189 27 . . Cannon 89 | . . . . . 16 47 26 Launcher 16 | . . . . 14 1 . 1 Special . | . . . . . . . . Kinetic 89 | . . . . . 16 47 26 Thermal 33 | . . 9 1 23 . . . Explosive 16 | . . . . 14 1 . 1 Electromagnetic 275 | . 2 21 59 166 27 . . Robot Hit Streak 21 | . 1 9 21 16 4 5 6 Robot Miss Streak 6 | . 1 6 5 4 3 3 2 Penetration Max . | . . . . . . . . Secondary Targets 8 | . . . 4 4 . . . Max Gunslinging Chain 1 | . . . 1 1 . . . Shots Hit Robots 264 | . 1 16 46 138 21 25 17 Core Hits 200 | . 1 5 39 112 14 16 13 Critical Kills . | . . . . . . . . Critical Parts Destroyed . | . . . . . . . . Critical Strikes 10 | . . . . 2 2 3 3 Burn 1 | . . . . 1 . . . Blast 8 | . . . . . 2 3 3 Corrupt 1 | . . . . 1 . . . Melee Attacks . | . . . . . . . . Impact . | . . . . . . . . Slashing . | . . . . . . . . Piercing . | . . . . . . . . Sneak Attacks . | . . . . . . . . Combat Hostiles . | . . . . . . . . Follow-up Attacks . | . . . . . . . . Damage Inflicted 8579 | . 22 213 1087 4993 827 831 606 Guns 3963 | . 22 206 871 2557 307 . . Cannons 1555 | . . . . . 308 831 416 Explosions 2929 | . . . 207 2354 187 . 181 Melee . | . . . . . . . . Ramming 132 | . . 7 9 82 25 . 9 Kinetic 1555 | . . . . . 308 831 416 Thermal 830 | . . 39 207 584 . . . Explosive 2299 | . . . . 1931 187 . 181 Electromagnetic 3763 | . 22 167 871 2396 307 . . Impact . | . . . . . . . . Slashing . | . . . . . . . . Piercing . | . . . . . . . . Highest Corruption 9 | . . . . 5 7 9 . Average Corruption 5 | . . . . 3 6 7 . Corruption Purged . | . . . . . . . . Corruption Blocked . | . . . . . . . . Effects 64 | . . . . 29 10 25 . Message Errors 12 | . . . . 5 3 4 . Matter Fused 15 | . . . . 9 2 4 . Heat Flow Errors 9 | . . . . 4 1 4 . Energy Discharges 14 | . . . . 7 2 5 . Parts Rejected 1 | . . . . . 1 . . Parts Fused 1 | . . . . . . 1 . Data Loss (minor) 3 | . . . . 1 . 2 . Data Loss (major) 2 | . . . . . 1 1 . Misfires 5 | . . . . 2 . 3 . Alerts 1 | . . . . . . 1 . Weapon Failures 1 | . . . . 1 . . . Overload Shots . | . . . . . . . . Overflow Damage 70 | . . . 4 10 . 17 39 Projectiles 56 | . . . . . . 17 39 Explosions 14 | . . . 4 10 . . . Melee . | . . . . . . . . Knockbacks 10 | . . . . . 3 5 2 Impact . | . . . . . . . . Kinetic 10 | . . . . . 3 5 2 Secondary . | . . . . . . . . Self-Inflicted Damage 190 | . . . . 190 . . . Shots 5 | . . . . 5 . . . Rammed 15 | . . . 1 10 1 . 3 Targets Rammed 23 | . . 3 2 13 2 . 3 Kicked 3 | . . 3 . . . . . Crushed 5 | . . . 1 3 1 . . Highest Temperature 512 | . 18 206 297 360 512 472 27 Average Temperature 114 | . 12 105 85 97 212 146 6 Received Heat Transfer 1332 | . . 99 171 711 189 90 72 Effects 17 | . . 2 1 2 9 3 . Shutdowns 1 | . . . . . 1 . . Energy Bleed 6 | . . . . . 3 3 . Interference 6 | . . 2 1 . 3 . . Matter Decay 2 | . . . . 1 1 . . Damage (minor) 2 | . . . . 1 1 . . Siege Activations . | . . . . . . . . Robots Corrupted 7 | . . 1 1 4 1 . . Combat Hostiles 7 | . . 1 1 4 1 . . Parts Fried 19 | . . . 2 16 1 . . Impact Corruptions . | . . . . . . . . Robots Melted . | . . . . . . . . Combat Hostiles . | . . . . . . . . Parts Melted 3 | . . . 1 2 . . . Heat Transferred 1442 | . . 111 300 1031 . . . Parts Sabotaged . | . . . . . . . . Parts Stolen . | . . . . . . . . Parts Stripped . | . . . . . . . . Power Chain Reactions 11 | . . . 5 6 . . . Alert | -11 -10 -10 -9 -8 -8 -8 -8 ------- Run | Yrd Mat Min Mat Mat Sto Rec Scr Peak Influence 1036 | . 22 73 280 1036 735 346 . Initial 437 | . . 8 . 118 437 286 . Average 365 | . 11 29 122 609 619 190 . Maximum Alert Level 3 | . . . 1 3 3 1 . Low Security (%) 37 | . 100 100 64 4 . 58 . Level 1 15 | . . . 35 2 . 41 . Level 2 32 | . . . . 65 67 . . Level 3 14 | . . . . 27 32 . . Level 4 . | . . . . . . . . Level 5 . | . . . . . . . . High Security . | . . . . . . . . Max Security . | . . . . . . . . Squads Dispatched 10 | . . . 2 7 1 . . Investigation 3 | . . . 1 1 1 . . Extermination . | . . . . . . . . Reinforcement 6 | . . . 1 5 . . . Assault 1 | . . . . 1 . . . Garrison . | . . . . . . . . Intercept . | . . . . . . . . Searches Triggered . | . . . . . . . . Construction Impeded 2 | . . . 1 1 . . . Haulers Reinforced . | . . . . . . . . Active Scanning Responses . | . . . . . . . . Cargo Convoy Interrupts . | . . . . . . . . Stealth | -11 -10 -10 -9 -8 -8 -8 -8 --------- Run | Yrd Mat Min Mat Mat Sto Rec Scr Distress Signals 7 | . . . 3 4 . . . Communications Jammed . | . . . . . . . . Distress Signals . | . . . . . . . . Times Spotted 125 | . 1 3 25 66 10 9 11 Peak Tracking Total 10 | . 1 2 5 8 5 7 10 Tactical Retreats 6 | . . . 1 5 . . . Traps | -11 -10 -10 -9 -8 -8 -8 -8 ------- Run | Yrd Mat Min Mat Mat Sto Rec Scr Traps Triggered 6 | . 1 . 2 2 1 . . Indirectly . | . . . . . . . . Trap Hack Attempts . | . . . . . . . . Triggered . | . . . . . . . . Disarmed . | . . . . . . . . Reprogrammed . | . . . . . . . . Reused . | . . . . . . . . Traps Extracted . | . . . . . . . . Installed . | . . . . . . . . Triggered . | . . . . . . . . Machines | -11 -10 -10 -9 -8 -8 -8 -8 ---------- Run | Yrd Mat Min Mat Mat Sto Rec Scr Machines Disabled 8 | . . 1 1 2 . . 4 Max in Single Turn 2 | . . 1 1 1 . . 2 Machines Repaired . | . . . . . . . . Machines Dismantled . | . . . . . . . . Machines Sabotaged . | . . . . . . . . Overloaded Fab Kills . | . . . . . . . . Hacking | -11 -10 -10 -9 -8 -8 -8 -8 --------- Run | Yrd Mat Min Mat Mat Sto Rec Scr Machines Accessed 24 | . . . 3 4 5 8 4 Terminals 15 | . . . 3 3 5 4 . Fabricators . | . . . . . . . . Repair Stations 1 | . . . . 1 . . . Recycling Units 4 | . . . . . . 4 . Scanalyzers . | . . . . . . . . Garrison Access . | . . . . . . . . Total Hacks 65 | . . . 8 9 10 21 17 Successful 40 | . . . 2 4 7 10 17 Failed 25 | . . . 6 5 3 11 . Catastrophic 8 | . . . 3 3 1 1 . Database Lockouts . | . . . . . . . . Manual 36 | . . . 8 6 7 15 . Terminals 34 | . . . 8 6 10 10 . Fabricators . | . . . . . . . . Repair Stations 3 | . . . . 3 . . . Recycling Units 11 | . . . . . . 11 . Scanalyzers . | . . . . . . . . Garrison Access . | . . . . . . . . Terminal Hacks 24 | . . . 1 1 4 1 17 Record 17 | . . . . . . . 17 Open Door 2 | . . . . . 2 . . Branch Access Points 2 | . . . 1 1 . . . Alert Level 1 | . . . . . 1 . . Unreport Threat 1 | . . . . . . 1 . Locate Traps 1 | . . . . . 1 . . Fabricator Hacks . | . . . . . . . . Repair Station Hacks 2 | . . . . 2 . . . Scan Component 1 | . . . . 1 . . . Repair 1 | . . . . 1 . . . Recycling Unit Hacks 3 | . . . . . . 3 . Retrieve Matter 1 | . . . . . . 1 . Retrieve Components 2 | . . . . . . 2 . Scanalyzer . | . . . . . . . . Garrison Access Hacks . | . . . . . . . . Unauthorized Hacks 11 | . . . 1 1 3 6 . Terminals 8 | . . . 1 1 3 3 . Botnet 8 | . . . 1 1 3 3 . Fabricators . | . . . . . . . . Repair Stations . | . . . . . . . . Recycling Units 3 | . . . . . . 3 . Tunnel 3 | . . . . . . 3 . Scanalyzers . | . . . . . . . . Garrison Access . | . . . . . . . . Data Cores Recovered 1 | . . . . . 1 . . Used . | . . . . . . . . Hacking Detections 14 | . . . 3 3 2 6 . Full Trace Events 2 | . . . 1 . . 1 . Feedback Events . | . . . . . . . . Feedback Blocked . | . . . . . . . . Robot Schematics Acquired . | . . . . . . . . Robots Built . | . . . . . . . . Authchips . | . . . . . . . . Time . | . . . . . . . . Total Robot Build Rating . | . . . . . . . . Part Schematics Acquired . | . . . . . . . . Parts Built . | . . . . . . . . Authchips . | . . . . . . . . Time . | . . . . . . . . Total Part Build Rating . | . . . . . . . . Parts Repaired 1 | . . . . 1 . . . Time 32 | . . . . 32 . . . Parts Recycled . | . . . . . . . . Recycled Matter . | . . . . . . . . Retrieved Matter . | . . . . . . . . Retrieved Components 11 | . . . . . . 11 . Parts Scanalyzed . | . . . . . . . . Part Schematics Acquired . | . . . . . . . . Parts Damaged . | . . . . . . . . Bothacking | -11 -10 -10 -9 -8 -8 -8 -8 ------------ Run | Yrd Mat Min Mat Mat Sto Rec Scr Used RIF Installer . | . . . . . . . . Robots Hacked . | . . . . . . . . Non-combat . | . . . . . . . . Combat . | . . . . . . . . Robot Hacks Applied . | . . . . . . . . Relay Couplers Released . | . . . . . . . . Fabnet Peak Effective % . | . . . . . . . . Robots Rewired 4 | . . . . . . 4 . Allies Hacked 3 | . . . . . . 3 . Hacks Repelled . | . . . . . . . . Allies | -11 -10 -10 -9 -8 -8 -8 -8 -------- Run | Yrd Mat Min Mat Mat Sto Rec Scr Total Allies 4 | . . . . . . 4 . Largest Group 3 | . . . . . . 3 1 Highest-Rated Group 60 | . . . . . . 60 15 Highest-Rated Ally 27 | . . . . . . 27 15 Total Orders . | . . . . . . . . Ally Attacks 5 | . . . . . . 4 1 Total Damage 127 | . . . . . . 127 . Kills . | . . . . . . . . Allies Corrupted . | . . . . . . . . Allies Melted . | . . . . . . . . Intel | -11 -10 -10 -9 -8 -8 -8 -8 ------- Run | Yrd Mat Min Mat Mat Sto Rec Scr Robot Analysis Total . | . . . . . . . . Derelict Logs Recovered 2 | . . 2 . . . . . Drone Launches . | . . . . . . . . Drone Recoveries . | . . . . . . . . Exploration | -11 -10 -10 -9 -8 -8 -8 -8 ------------- Run | Yrd Mat Min Mat Mat Sto Rec Scr Turns Passed 5921 | . 63 457 857 1796 325 773 1650 Spaces Moved 3021 | 1 46 283 416 790 134 403 948 Core . | . . . . . . . . Treads 2803 | . . 112 416 790 134 403 948 Legs 218 | 1 46 171 . . . . . Wheels . | . . . . . . . . Hover . | . . . . . . . . Flight . | . . . . . . . . Fastest Speed 120 | 120 120 120 160 160 163 161 145 Average Speed 159 | 120 121 135 162 163 164 162 161 Slowest Speed 240 | 120 190 160 240 170 170 163 225 Overloaded Moves . | . . . . . . . . Propulsion Burnouts . | . . . . . . . . Robots Hopped . | . . . . . . . . Cave-ins Triggered . | . . . . . . . . Exploration Rate (%) 46 | 2 19 64 55 52 33 68 76 Regions Visited 7 Branch Regions 4 Pre-discovered Areas 4 | . . 1 . . . 3 . Known Exits Taken 2 | . . . 1 1 . . . Unknown Exits Taken 5 | 1 1 1 . . 1 1 . Scrap Searched 9 | . . 1 . . . . 8 Spaces Dug 1 | . . . . . . . 1 Terrain Destroyed 261 | . . . 19 184 20 18 20 Melee . | . . . . . . . . Projectile 36 | . . . . . 4 18 14 AOE 225 | . . . 19 184 16 . 6 Terrain Rammed . | . . . . . . . . Walls Destroyed . | . . . . . . . . Machines Disabled . | . . . . . . . . Actions | -11 -10 -10 -9 -8 -8 -8 -8 --------- Run | Yrd Mat Min Mat Mat Sto Rec Scr Total 3755 | . 51 328 532 1111 202 488 1043 Wait 295 | . . 12 47 111 36 28 61 Move 3014 | . 45 282 415 789 133 402 948 Hop . | . . . . . . . . Pick Up 41 | . 1 1 10 25 1 . 3 Fast Attach 21 | . 2 . 5 9 1 1 3 Attach 13 | . . 5 1 5 1 . 1 Detach 5 | . 1 2 1 . 1 . . Swap 32 | . . . 10 18 4 . . Drop 47 | . 1 4 9 26 1 . 6 Fire 229 | . 1 19 32 115 22 22 18 Melee . | . . . . . . . . Ram . | . . . . . . . . Kick 3 | . . 3 . . . . . Crush 20 | . . . 2 13 2 . 3 Escape Stasis . | . . . . . . . . Rewire 35 | . . . . . . 35 . Trap . | . . . . . . . . Miscellaneous . | . . . . . . . . Route ------- -11/Scrapyard -10/Materials -10/Mines -9/Materials (discovered 4 exits: *Mat x3 / *Min) -8/Materials (discovered 4 exits: [*Fac x3] / *Sto) -8/Storage -8/Recycling -8/Scraptown (discovered 1 exit: [*Fac]) History --------- Turn | Location | Event 1 | -11/Scrapyard | Discovered new exit (range 0) 1 | -11/Scrapyard | Entered Materials 48 | -10/Materials | Discovered new exit (range 11) 64 | -10/Materials | Entered Mines 105 | -10/Mines | Found a damaged Exp. Sensor Array with a note attached 112 | -10/Mines | Found Prototype Device 165 | -10/Mines | Learned location of 1 exit from Materials 242 | -10/Mines | Assembled infested the area 247 | -10/Mines | Assisted by a Guerilla fighting off Assembled 308 | -10/Mines | Build established: Mutant 439 | -10/Mines | Learned location of Zion (-7) 468 | -10/Mines | Discovered new exit (range 11) 521 | -10/Mines | Entered Materials 521 | -9/Materials | Evolved 2 slots: Propulsion x1, Utility x1 522 | -9/Materials | Identified exit to Materials 1028 | -9/Materials | Discovered exit to Materials (range 11) 1202 | -9/Materials | Discovered new exit (range 8) 1361 | -9/Materials | Destroyed 7 combat bots 1362 | -9/Materials | Identified exit to Mines 1362 | -9/Materials | Discovered exit to Materials (range 10) 1378 | -9/Materials | Entered another Materials area 1378 | -8/Materials | Evolved 2 slots: Propulsion x1, Utility x1 1545 | -8/Materials | Destroyed 9 combat bots 1779 | -8/Materials | Build established: Scavenger-Mutant 1825 | -8/Materials | Discovered new exit (range 14) 1883 | -8/Materials | Repaired Med. Armor Plating 2116 | -8/Materials | Build established: Mutant 2341 | -8/Materials | Discovered new exit (range 16) 2488 | -8/Materials | Identified exit to Storage 2578 | -8/Materials | First assault squad dispatched 2737 | -8/Materials | Destroyed 7 combat bots 3065 | -8/Materials | Core integrity fell below 50% 3068 | -8/Materials | Discovered new exit (range 15) 3110 | -8/Materials | Destroyed 9 combat bots 3174 | -8/Materials | Entered Storage 3492 | -8/Storage | Used back door to open Recycling access 3492 | -8/Storage | Discovered new exit (range 5) 3499 | -8/Storage | Entered Recycling 3901 | -8/Recycling | Destroyed 7 combat bots 4032 | -8/Recycling | Lost 3 allies 4232 | -8/Recycling | Scanned before Scraplab entrance 4254 | -8/Recycling | Entered Scraplab 4267 | -8/Recycling | Discovered new exit (range 3) 4272 | -8/Recycling | Entered Scraptown 4272 | -8/Scraptown | Accompanied by 1 ally 4272 | -8/Scraptown | System corruption cleaned by C-Scrubber 4593 | -8/Scraptown | Discovered new exit (range 7) 4675 | -8/Scraptown | Visited Bundlers 4778 | -8/Scraptown | Visited Comm Corps 4851 | -8/Scraptown | Visited UFD Registry 4851 | -8/Scraptown | Registered with UFD as "Gaussrider" 5134 | -8/Scraptown | Visited Supply Room 5171 | -8/Scraptown | Visited Infowarlord's Domain 5208 | -8/Scraptown | Visited Abandonware Association 5229 | -8/Scraptown | Learned abandonware demo "SHUTEYE.EXE" 5383 | -8/Scraptown | Visited A0-MCA Data Center 5393 | -8/Scraptown | Given a B+ rating by A0-MCA 5400 | -8/Scraptown | Found A0-MCA's Component Scanner 5483 | -8/Scraptown | Visited Derelict Rescue Squad 5495 | -8/Scraptown | Found DRS Beacon 5525 | -8/Scraptown | Visited Scrap Suit Storage 5542 | -8/Scraptown | Found Scrap Suit 5548 | -8/Scraptown | Found Scrap Suit 5570 | -8/Scraptown | Visited Chapter 10 5653 | -8/Scraptown | Visited DA-N13 Charitable Foundation 5661 | -8/Scraptown | Found DCF Scrap (28 items) 5702 | -8/Scraptown | Visited Curators Association 5760 | -8/Scraptown | Visited Cartography Club 5784 | -8/Scraptown | Attacked by Scraptown defenders 5803 | -8/Scraptown | Core integrity fell below 20% 5922 | -8/Scraptown | Destroyed by Triborg with Siege Cannon Last Messages --------------- 05915_ Slug penetrates Machine. 05915_ Machine disabled. 05916_ Acquired 6 matter. 05916_ Penetrated by Siege Slug. 05917_ Component scanned: Enh. Autogun [28-SA2(E)]. 05918_ Acquired 10 matter. 05918_ Penetrated by Siege Slug. 05918_ Slug penetrates Wall. 05918_ UV-LE0(x) destroyed. 05919_ Acquired 20 matter. 05919_ Gauss Cannon destroyed. 05920_ Penetrated by Siege Slug. 05920_ Hvy. Rocket Launcher destroyed. 05920_ Scrap Suit destroyed. 05920_ Critical hit (Blast). 05922_ Component scanned: Siege Cannon [Triborg]. 05922_ LJ-HVS(j) heat damages Ovr. Titanium Leg. 05922_ Penetrated by Siege Slug. Map ----- +----------------------------------------------------+ | ?????????????????????????????????????????????????? | | ?????????????????????????????????????????????????? | | ?????????????????????????????????????????????????? | | ?????????????????????????????????????????????????? | | ?????????????????????????????????????????????????? | | "????????????????????????????????????????????????? | | ??????????????????????????????????????????????? | | ??????????????????????????????????????????????? | | ??????????????????????????????????????????????? | | "???????????????????????????????????????????????? | | ?????????????????????????????????????????????????? | | ?????????????????????????????????????????????????? | | ?????????????????????????????????????????????????? | | ?????????????????????????????????????????????????? | | ??????????????????????####???????????????????????? | | ??????????????????????? ?????????###?###???????? | | ??????????????????????? " ??###????#"###"#???????? | | ??????????????????????? ;#### #?#### "[" ####????? | | #?????????????????????? #% #!#?#" """ "#????? | | #??????????????????????# ##[& #??#"" ""#?????? | | #?????????????????#????#;#%= #??#*" "!####### | | #?????????????????? ??#!*%=" #?##"" ""## ## | | #???????????????????# ?#!#[####?#" "#/ ## | | #???????? "?????????# #[%[! #?##"" ""## % *! | | #???????? "??????######%%];####??#]" "]##= =] | | #???????? "#?????# *==@% #?##"" ""## =* | | #???????? "#?????# =!%[% #?#" "# =! | | #??????? "#?????####;# ###?###### ########### | | ######### ####?????# ## ######## ########### | | #????# ##" """"""" """"""""""" | | #???# #?#" EE | | #??# #??#" j | | #??##???#" %! | | #???????#" | | #### #???????#" | | "#?# #??????"" """""""""""""""""""""" | | #?# #??????"" """""""""""""""""""""" | | "#?# #?????""" ""###### ############ | | "#?# #?????""" ""# ##????? | | "#?# #?????""" ""# X"#????? | | "??# ###???""" TTj ""# "" "" ##????? | | ???# ""#"#?""" ""# "" "" X"#????? | | ???# """"#??"" ""# " " ####### | | ???# ""###???#" "" "" | | ???# ###?????#" "" "" | | ???# #########" ""# " " ####### | | ???# ""# "" "" ""#????? | | ???# ""# "" "" ##????? | | ???# ""# ""#????? | | ???# ""# ##????? | +----------------------------------------------------+ Best States ------------- Heat Dissipation 45 Coolant Potential 50 Energy Generation 14 Energy Capacity 280 Matter Stores 300 Matter Capacity 300 Sight Range 16 Terrain Scan Density 10 Armor Coverage 375 Resistance: KI 20 Weapon Cycling 15 Evasion (%) 55 Recoil Reduction 4 Item Schematics ----------------- None Robot Schematics ------------------ None Fabricated ------------ Nothing Alien Tech Used ----------------- None Achievements -------------- None Challenges ------------ None Game ------ Seed MobileHardcellSheargun Manual? 0 Play Time 00:45:15 Cumulative 145.6 hours Start 2024.11.24 @ 02:30:07 End 2024.11.24 @ 03:16:07 Sessions 1 Manual Loads 0 Difficulty Rogue Special Mode None Game No. 131 Rogue 112 Adventurer 16 Explorer 3 Win Type - Total 10 Types 8/0/1/1/0/0/0/0/0 Lore% 34 Gallery% 67 Achievement% 59 Wizard Run 0 Options --------- Layout 2 ASCII 0 Keyboard 0 Movement Numpad Keybinds 1 Fullscreen 1 Font 24/Terminus Map View 50x44 Zoom Use 0% Tactical HUD 1 Map Filters NONE Filters NONE Steam 1 RUN: cf930285-b52e-48c6-bb33-ffa65e1a7490